bitfinex-derivatives/quotes_ETHF0:USTF0_20260128
["timestamp","ask_amount","ask_price","bid_price","bid_amount"]
[1769606603894,3.05565853,3037.7,3036.8,3.70533264]
[1769606604295,2.01298087,3037.6,3036.8,3.70533264]
[1769606604694,1.04267766,3037.5,3036.5,7.5765715]
[1769606604896,1.99212725,3037.4,3036.5,3.6835715]
[1769606609700,40.8,3038.3,3036.0,3.44206725]
[1769606609701,1.04267766,3037.0,3036.0,3.44206725]
[1769606610091,2.40865158,3037.2,3036.0,3.44206725]
[1769606610391,1.04267766,3036.7,3036.0,3.44206725]
[1769606610598,2.40865158,3036.7,3036.0,3.44206725]
[1769606610802,1.04267766,3037.2,3036.0,3.44206725]
[1769606610986,1.04267766,3037.0,3036.0,3.44206725]
[1769606611190,1.38314542,3036.9,3036.0,3.44206725]
[1769606611395,1.38314542,3036.7,3035.8,4.06115897]
[1769606611700,1.38314542,3036.7,3035.8,4.22608897]
[1769606613599,1.04267766,3036.6,3035.8,4.22608897]
[1769606614392,1.04267766,3036.6,3035.8,4.06115897]
[1769606615098,1.38314542,3036.7,3035.8,4.06115897]
[1769606615300,1.04267766,3036.8,3035.8,4.06115897]
[1769606616503,1.70472211,3036.7,3035.8,4.06115897]
[1769606616801,1.04267766,3036.6,3035.8,4.06115897]
[1769606617301,1.70472211,3036.7,3035.8,4.06115897]
[1769606617495,1.04267766,3036.8,3035.8,4.06115897]
[1769606617800,1.04267766,3037.0,3035.8,4.06115897]
[1769606617993,1.71798951,3037.1,3036.0,3.44206725]
[1769606619005,1.04267766,3037.2,3036.0,3.44206725]
[1769606620001,1.72159869,3037.3,3036.2,3.44206725]
[1769606620393,8.00927635,3037.8,3036.6,3.44206725]
[1769606620793,1.04267766,3037.6,3036.6,3.44206725]
[1769606621201,6.96659869,3037.8,3035.8,0.61909172]
[1769606621202,1.04267766,3036.7,3036.0,3.60698725]
[1769606621597,1.04267766,3037.1,3036.0,3.60698725]
[1769606621801,1.73026426,3037.2,3036.2,3.44206725]
[1769606622102,1.04267766,3037.4,3036.2,3.44206725]
[1769606622304,1.73026426,3037.5,3036.4,3.44206725]
[1769606623195,1.04267766,3038.4,3035.8,1.66176938]
[1769606623196,1.72805625,3037.7,3036.7,1.04267766]
[1769606623398,1.72805625,3038.2,3037.2,3.44206725]
[1769606623700,6.44123345,3038.1,3037.2,3.44206725]
[1769606623896,1.04267766,3037.9,3036.8,3.44206725]
[1769606624502,1.72805625,3038.0,3036.8,3.44206725]
[1769606625305,1.04267766,3037.9,3036.8,3.44206725]
[1769606625501,2.80644642,3037.9,3036.8,3.44206725]
[1769606628613,1.04267766,3037.7,3036.8,3.44206725]
[1769606629110,1.04665865,3037.7,3036.8,3.44444644]
[1769606629610,0.00398099,3037.7,3036.8,3.44444644]
[1769606632509,3.72358996,3037.6,3036.8,3.44444644]
[1769606632706,0.00398099,3037.7,3036.8,3.44444644]
[1769606633010,3.72358996,3037.6,3036.8,3.44444644]
[1769606633216,0.00398099,3037.7,3036.8,3.44444644]
[1769606633410,3.7243531,3037.6,3036.8,3.44444644]
[1769606633609,0.00398099,3037.7,3036.8,3.44444644]
[1769606633812,3.72435707,3037.6,3036.8,3.44444644]
[1769606634014,0.00398099,3037.7,3036.8,3.44444644]
[1769606634205,3.72435707,3037.6,3036.8,3.44444644]
[1769606634407,0.00398099,3037.7,3036.8,3.44444644]
[1769606634612,3.72490114,3037.6,3036.8,3.44444644]
[1769606634814,0.00398099,3037.7,3036.8,3.44444644]
[1769606635117,3.72490114,3037.6,3036.8,3.44444644]
[1769606635304,0.00398099,3037.7,3036.8,3.44444644]
[1769606635510,3.72484582,3037.6,3036.8,3.44444644]
[1769606635710,1.72356383,3037.7,3036.8,3.44444644]
[1769606635905,3.7299734,3037.6,3036.8,3.44444644]
[1769606636107,1.72356383,3037.7,3036.8,3.44444644]
[1769606636316,3.729979,3037.6,3036.8,3.44444644]
[1769606636510,1.72356383,3037.7,3036.8,3.44444644]
[1769606636710,3.72992621,3037.6,3036.8,3.44444644]
[1769606636914,1.72356383,3037.7,3036.8,3.44444644]
[1769606637116,3.72993447,3037.6,3036.8,3.44444644]
[1769606637315,1.72356383,3037.7,3036.8,3.44444644]
[1769606637617,3.72987872,3037.6,3036.8,3.44444644]
[1769606637817,1.72356383,3037.7,3036.8,3.44444644]
[1769606638118,5.48777414,3037.6,3036.8,3.44444644]
[1769606638314,3.72987872,3037.5,3036.8,3.44444644]
[1769606639515,3.72987872,3037.5,3036.8,0.00237919]
[1769606639818,1.93734959,3037.1,3035.8,0.61909172]
[1769606640013,1.04288668,3036.8,3035.8,0.61909172]
[1769606640216,3.72987872,3036.7,3035.8,0.61909172]
[1769606640618,3.72987872,3036.7,3035.8,0.6222861]
[1769606641112,1.95603941,3037.1,3035.8,0.6222861]
[1769606641415,1.95603941,3036.9,3035.8,0.6222861]
[1769606641611,5.69329479,3036.8,3035.8,3.98264083]
[1769606641810,3.73725538,3036.7,3035.8,3.98264083]
[1769606642017,1.95603941,3036.8,3035.8,3.98264083]
[1769606642219,3.73693844,3036.7,3035.8,3.98264083]
[1769606642419,1.95603941,3036.8,3035.8,3.98264083]
[1769606644221,1.98082625,3037.1,3035.8,3.98264083]
[1769606644422,5.72065999,3037.0,3035.8,3.98264083]
[1769606644717,3.73983374,3036.9,3035.8,3.98264083]
[1769606644920,1.98082625,3037.0,3035.8,3.98264083]
[1769606645118,3.73983261,3036.9,3035.8,3.98264083]
[1769606645317,1.98082625,3037.0,3035.8,3.98264083]
[1769606645614,41.84288668,3037.2,3035.8,4.14758083]
[1769606645821,3.73968169,3037.1,3036.0,3.36035473]
[1769606646013,3.73968169,3037.0,3036.0,3.36035473]
[1769606646213,43.83402914,3037.2,3036.0,3.36035473]
[1769606646414,1.99114246,3037.0,3036.0,3.36035473]
[1769606648522,3.73986472,3036.9,3036.0,3.36035473]
[1769606648718,1.99114246,3037.0,3036.0,3.36035473]
[1769606649017,3.75181634,3036.9,3036.0,3.36035473]
[1769606649321,1.99114246,3037.0,3036.0,3.36035473]
[1769606649520,3.75166543,3036.9,3036.0,3.36035473]
[1769606649710,1.99114246,3037.0,3036.0,3.36035473]
[1769606649915,3.75166509,3036.9,3036.0,3.36035473]
[1769606650218,1.99114246,3037.0,3036.0,3.36035473]
[1769606650722,9.46313727,3037.2,3036.0,3.36035473]
[1769606650922,3.75149241,3037.1,3036.0,3.36035473]
[1769606651220,3.75149241,3037.0,3036.0,3.52527473]
[1769606651417,6.359,3037.2,3036.0,3.52527473]
[1769606651725,3.75115443,3037.1,3036.0,3.52527473]
[1769606652021,3.75115443,3037.0,3036.0,3.52527473]
[1769606652221,6.359,3037.2,3036.0,3.52527473]
[1769606652423,3.75094359,3037.1,3036.0,3.52527473]
[1769606652617,3.75094359,3037.0,3036.0,3.52527473]
[1769606652919,6.359,3037.2,3036.0,3.52527473]
[1769606653122,3.75093321,3037.1,3036.0,3.52527473]
[1769606653315,3.75093321,3037.0,3036.0,3.52527473]
[1769606653522,6.359,3037.2,3036.0,3.52527473]
[1769606653721,3.75070101,3037.1,3036.0,3.52527473]
[1769606653915,3.75070101,3037.0,3036.0,3.52527473]
[1769606654114,6.359,3037.2,3036.0,3.52527473]
[1769606654415,6.359,3037.2,3035.8,0.6222861]
[1769606654416,8.47255898,3037.7,3036.3,3.36035473]
[1769606654617,3.75056096,3037.6,3036.3,3.36035473]
[1769606654816,3.75056096,3037.5,3036.3,3.36035473]
[1769606655019,3.75056096,3037.4,3036.5,3.52525473]
[1769606655226,6.36998099,3037.7,3036.5,3.52525473]
[1769606655523,3.75077649,3037.6,3036.5,3.52525473]
[1769606655724,3.75077649,3037.5,3036.5,3.52525473]
[1769606655922,3.75077649,3037.4,3036.5,3.52525473]
[1769606656122,6.36998099,3037.7,3036.5,3.52525473]
[1769606656425,3.75099802,3037.6,3036.5,3.52525473]
[1769606656618,3.75099802,3037.5,3036.5,3.52525473]
[1769606656819,3.75099802,3037.4,3036.5,3.52525473]
[1769606657024,6.36998099,3037.7,3036.5,3.52525473]
[1769606657227,3.7474654,3037.6,3036.5,3.52525473]
[1769606657426,3.7474654,3037.5,3036.5,3.52525473]
[1769606657627,3.7474654,3037.4,3036.5,3.52525473]
[1769606657828,6.36998099,3037.7,3036.5,3.52525473]
[1769606658125,3.74783803,3037.6,3036.5,3.52525473]
[1769606658318,3.74783803,3037.5,3036.5,3.52525473]
[1769606658517,3.74783803,3037.4,3036.5,3.52525473]
[1769606658718,8.39091356,3037.7,3036.5,3.52525473]
[1769606658926,3.75678685,3037.6,3036.5,3.52525473]
[1769606659224,3.75678685,3037.5,3036.5,3.52525473]
[1769606659425,3.75678685,3037.4,3036.5,3.52525473]
[1769606659725,6.36998099,3037.7,3036.5,3.52525473]
[1769606659928,3.75709222,3037.6,3036.5,3.52525473]
[1769606660125,3.75709222,3037.5,3036.5,3.52525473]
[1769606660425,3.75709222,3037.4,3036.5,3.52525473]
[1769606660625,2.04666895,3037.5,3036.5,3.52525473]
[1769606660822,5.80409874,3037.4,3036.5,3.52525473]
[1769606661024,2.04666895,3037.4,3036.5,3.52525473]
[1769606661422,1.04288668,3037.6,3036.5,3.52525473]
[1769606661622,3.7578136,3037.5,3036.5,3.52525473]
[1769606661920,3.7578136,3037.4,3036.5,3.52525473]
[1769606662122,1.04288668,3037.6,3036.5,3.52525473]
[1769606662326,3.75799966,3037.5,3036.5,3.52525473]
[1769606662524,3.75799966,3037.4,3036.5,3.52525473]
[1769606662720,1.04288668,3037.6,3036.5,3.52525473]
[1769606662919,3.75820518,3037.5,3036.5,3.52525473]
[1769606663123,3.75820518,3037.4,3036.5,3.52525473]
[1769606663427,3.75820518,3037.3,3036.5,3.52525473]
[1769606663629,1.04288668,3037.6,3036.5,3.52525473]
[1769606663829,3.75861922,3037.5,3036.5,3.52525473]
[1769606664127,1.04288668,3037.6,3036.5,3.52525473]
[1769606664128,3.75861922,3037.4,3036.5,3.52525473]
[1769606664427,3.75861922,3037.3,3036.5,3.52525473]
[1769606664628,2.05473805,3037.5,3036.5,3.52525473]
[1769606664834,5.81379945,3037.4,3036.5,3.52525473]
[1769606665019,3.7590614,3037.3,3036.5,3.52525473]
[1769606665634,3.09762473,3037.6,3036.5,3.52525473]
[1769606665928,3.75955053,3037.5,3036.5,3.52525473]
[1769606666132,3.75955053,3037.4,3036.5,3.52525473]
[1769606666333,3.75955053,3037.3,3036.5,3.52525473]
[1769606666627,3.09762473,3037.6,3036.5,3.52525473]
[1769606666836,3.76003942,3037.5,3036.5,3.52525473]
[1769606667032,3.76003942,3037.4,3036.5,3.52525473]
[1769606667332,3.76003942,3037.3,3036.5,3.52525473]
[1769606667535,3.09762473,3037.6,3036.5,3.52525473]
[1769606667732,3.76058064,3037.5,3036.5,3.52525473]
[1769606667931,3.76058064,3037.4,3036.5,3.52525473]
[1769606668231,3.76058064,3037.3,3036.5,3.52525473]
[1769606668428,3.09762473,3037.6,3036.5,3.52525473]
[1769606668630,3.76107254,3037.5,3036.5,3.52525473]
[1769606668823,3.76107254,3037.4,3036.5,3.52525473]
[1769606669028,3.76107254,3037.3,3036.5,3.52525473]
[1769606669233,3.09762473,3037.6,3036.5,3.52525473]
[1769606669530,3.766753,3037.5,3036.5,3.52525473]
[1769606669727,3.766753,3037.4,3036.5,3.52525473]
[1769606669927,3.766753,3037.3,3036.5,3.52525473]
[1769606670128,3.09762473,3037.6,3036.5,3.52525473]
[1769606670328,3.76677795,3037.5,3036.5,3.52525473]
[1769606670524,3.76677795,3037.4,3036.5,3.52525473]
[1769606670828,3.76677795,3037.3,3036.5,3.52525473]
[1769606671027,3.09762473,3037.6,3036.5,3.52525473]
[1769606671233,3.76677262,3037.5,3036.5,3.52525473]
[1769606671435,3.76677262,3037.4,3036.7,3.69790326]
[1769606671630,0.00398099,3037.7,3036.7,3.86279326]
[1769606671935,3.76673277,3037.6,3036.9,3.69790326]
[1769606672135,0.00398099,3037.7,3036.9,3.69790326]
[1769606672334,3.76622085,3037.6,3036.9,3.69790326]
[1769606672634,3.76622551,3037.5,3036.9,3.69790326]
[1769606672833,0.00398099,3037.7,3036.9,3.69790326]
[1769606673035,3.76623507,3037.6,3036.9,3.69790326]
[1769606673235,3.76623507,3037.5,3036.9,3.69790326]
[1769606673537,0.00398099,3037.7,3036.9,3.69790326]
[1769606673838,3.76600182,3037.6,3036.9,3.69790326]
[1769606674030,3.76600182,3037.5,3036.9,3.69790326]
[1769606674227,0.00398099,3037.7,3036.9,3.69790326]
[1769606674435,3.7693007,3037.6,3036.9,3.69790326]
[1769606674734,3.7693007,3037.5,3036.9,3.69790326]
[1769606674932,0.00398099,3037.7,3036.9,3.69790326]
[1769606675130,3.76930284,3037.6,3036.9,3.69790326]
[1769606675329,0.00398099,3037.7,3036.9,3.69790326]
[1769606675330,3.76930284,3037.5,3036.9,3.69790326]
[1769606675528,0.00398099,3037.7,3036.9,3.69790326]
[1769606675731,3.76929,3037.6,3036.9,3.69790326]
[1769606675933,3.76929,3037.5,3036.9,3.69790326]
[1769606676139,0.00398099,3037.7,3036.9,3.69790326]
[1769606676431,3.76905112,3037.6,3036.9,3.69790326]
[1769606676736,0.00398099,3037.7,3036.9,3.69790326]
[1769606676938,3.76904288,3037.6,3036.9,3.69790326]
[1769606677136,0.00398099,3037.7,3036.9,3.69790326]
[1769606677337,3.76901403,3037.6,3036.9,3.69790326]
[1769606677638,0.00398099,3037.7,3036.9,3.69790326]
[1769606677839,3.76901412,3037.6,3036.9,3.69790326]
[1769606678037,0.00398099,3037.7,3036.9,3.69790326]
[1769606678338,3.77586251,3037.6,3036.9,3.69790326]
[1769606678635,3.77586251,3037.5,3036.9,3.69790326]
[1769606678834,0.00398099,3037.7,3036.9,3.69790326]
[1769606679028,3.77596813,3037.6,3036.9,3.69790326]
[1769606679235,3.77596813,3037.5,3036.9,3.69790326]
[1769606679437,0.00398099,3037.7,3036.9,3.69790326]
[1769606679638,3.77622681,3037.6,3036.9,3.69790326]
[1769606679934,3.77622681,3037.5,3036.9,3.69790326]
[1769606680127,0.00398099,3037.7,3036.9,3.69790326]
[1769606680329,3.77662343,3037.6,3036.9,3.69790326]
[1769606680638,3.77662343,3037.5,3036.9,3.69790326]
[1769606680838,0.00398099,3037.7,3036.9,3.69790326]
[1769606681137,3.77661459,3037.6,3036.9,3.69790326]
[1769606681344,3.77661459,3037.5,3036.9,3.69790326]
[1769606681529,0.00398099,3037.7,3036.9,3.69790326]
[1769606681730,3.77706219,3037.6,3036.9,3.69790326]
[1769606681933,3.77706219,3037.5,3036.9,3.69790326]
[1769606682134,0.00398099,3037.7,3036.9,3.69790326]
[1769606682340,3.77757188,3037.6,3036.9,3.69790326]
[1769606682540,0.00398099,3037.7,3036.9,3.69790326]
[1769606682837,3.77756923,3037.6,3036.9,3.69790326]
[1769606683038,0.00398099,3037.7,3036.9,3.69790326]
[1769606683343,3.78270367,3037.6,3036.9,3.69790326]
[1769606683532,0.00398099,3037.7,3036.9,3.69790326]
[1769606683837,3.78329918,3037.6,3036.9,3.69790326]
[1769606684036,0.00398099,3037.7,3036.9,3.69790326]
[1769606684237,3.78329918,3037.6,3036.9,3.69790326]
[1769606684433,0.00398099,3037.7,3036.9,3.69790326]
[1769606684632,3.78408655,3037.6,3036.9,3.69790326]
[1769606684832,0.00398099,3037.7,3036.9,3.69790326]
[1769606685033,3.78409133,3037.6,3036.9,3.69790326]
[1769606685236,0.00398099,3037.7,3036.9,3.69790326]
[1769606685434,3.78406808,3037.6,3036.9,3.69790326]
[1769606685635,0.00398099,3037.7,3036.9,3.69790326]
[1769606685835,3.78406808,3037.6,3036.9,3.69790326]
[1769606686137,0.00398099,3037.7,3036.9,3.69790326]
[1769606686328,3.7840271,3037.6,3036.9,3.69790326]
[1769606686532,0.00398099,3037.7,3036.9,3.69790326]
[1769606686733,3.78402906,3037.6,3036.9,3.69790326]
[1769606686933,0.00398099,3037.7,3036.9,3.69790326]
[1769606687134,3.7799464,3037.6,3036.9,3.69790326]
[1769606687334,0.00398099,3037.7,3036.9,3.69790326]
[1769606687542,3.77994271,3037.6,3036.9,3.69790326]
[1769606687739,0.00398099,3037.7,3036.9,3.69790326]
[1769606687940,3.77994073,3037.6,3036.9,3.69790326]
[1769606688140,0.00398099,3037.7,3036.9,3.69790326]
[1769606688340,3.7799619,3037.6,3036.9,3.69790326]
[1769606688642,0.00398099,3037.7,3036.9,3.69790326]
[1769606688845,3.7799619,3037.6,3036.9,3.69790326]
[1769606689037,0.00398099,3037.7,3036.9,3.69790326]
[1769606689243,3.7799619,3037.6,3036.9,3.69790326]
[1769606689445,0.00398099,3037.7,3036.9,3.69790326]
[1769606689639,3.78001098,3037.6,3036.9,3.69790326]
[1769606689938,0.00398099,3037.7,3036.9,3.69790326]
[1769606690139,3.78001098,3037.6,3036.9,3.69790326]
[1769606690332,0.00398099,3037.7,3036.9,3.69790326]
[1769606690538,3.78009152,3037.6,3036.9,3.69790326]
[1769606690739,0.00398099,3037.7,3036.9,3.69790326]
[1769606690940,3.78009152,3037.6,3036.9,3.69790326]
[1769606691144,0.00398099,3037.7,3036.9,3.69790326]
[1769606691343,3.78366447,3037.6,3036.9,3.69790326]
[1769606691544,0.00398099,3037.7,3036.9,3.69790326]
[1769606691744,3.78366234,3037.6,3036.9,3.69790326]
[1769606691944,0.00398099,3037.7,3036.9,3.69790326]
[1769606692146,3.78366234,3037.6,3036.9,3.69790326]
[1769606692344,0.00398099,3037.7,3036.9,3.69790326]
[1769606692647,3.78383463,3037.6,3036.9,3.69790326]
[1769606692847,0.00398099,3037.7,3036.9,3.69790326]
[1769606693049,3.78383463,3037.6,3036.9,3.69790326]
[1769606693237,0.00398099,3037.7,3036.9,3.69790326]
[1769606693549,4.82694796,3037.6,3036.9,3.69790326]
[1769606693851,1.04290037,3037.6,3036.9,3.69790326]
[1769606695149,1.04290037,3037.4,3036.9,3.69790326]
[1769606697046,1.04290037,3037.2,3036.1,3.41435123]
[1769606697348,1.04290037,3037.2,3036.0,3.893]
[1769606697349,1.04290037,3037.2,3036.5,3.41435123]
[1769606697943,1.04290037,3036.8,3035.9,0.16493]
[1769606698149,1.04290037,3036.6,3035.9,0.16493]
[1769606700250,1.04290037,3036.6,3035.9,3.57928123]
[1769606700447,1.04290037,3036.4,3035.9,3.41435123]
[1769606700650,4.4161372,3036.4,3035.8,0.6222861]
[1769606700850,3.37323683,3036.4,3035.8,0.6222861]
[1769606701057,1.04290037,3036.6,3035.8,4.03663733]
[1769606702653,3.37323683,3036.5,3035.8,4.03663733]
[1769606703457,1.04290037,3036.4,3035.8,4.03663733]
[1769606704348,4.4161372,3036.2,3035.6,3.41435123]
[1769606704550,1.04290037,3036.2,3035.6,3.41435123]
[1769606704855,1.04290037,3036.5,3035.6,3.41435123]
[1769606705050,4.4161372,3036.5,3035.6,3.41435123]
[1769606705451,4.4161372,3036.5,3035.6,3.41679778]
[1769606707153,4.4161372,3036.7,3035.6,3.41679778]
[1769606707355,4.4161372,3036.9,3035.8,3.41435123]
[1769606707552,3.37323683,3035.9,3035.0,3.41435123]
[1769606707749,1.04290037,3035.5,3035.0,3.41435123]
[1769606707955,1.04290037,3035.7,3035.0,3.41435123]
[1769606708156,3.37323683,3035.8,3035.0,3.41435123]
[1769606708462,1.04290037,3035.7,3035.0,3.41435123]
[1769606708763,4.41889453,3035.7,3035.0,3.41795828]
[1769606711561,0.00275733,3035.7,3035.0,3.41795828]
[1769606711768,0.00275733,3035.7,3035.1,3.41435123]
[1769606712066,4.4161372,3036.7,3035.5,3.41435123]
[1769606712266,3.79432798,3036.6,3035.5,3.41435123]
[1769606712468,4.69661535,3036.7,3035.5,3.41435123]
[1769606712964,4.69957771,3036.7,3035.5,3.41435123]
[1769606714372,1.32634088,3036.7,3035.5,3.57930123]
[1769606716072,0.00296236,3036.7,3035.7,3.41435123]
[1769606717270,1.04290037,3036.5,3035.7,3.41435123]
[1769606718875,0.00296236,3036.7,3035.6,3.41435123]
[1769606718876,1.04290037,3036.1,3035.6,3.41435123]
[1769606719369,1.04290037,3036.3,3035.6,3.41435123]
[1769606720070,1.04290037,3035.9,3035.3,3.41435123]
[1769606720277,1.04290037,3036.1,3035.3,3.41435123]
[1769606722069,1.04290037,3035.9,3035.3,3.41435123]
[1769606722275,1.04290037,3035.7,3035.1,3.41435123]
[1769606722572,1.04290037,3035.9,3035.1,3.41435123]
[1769606723973,1.04290037,3036.1,3035.1,3.41435123]
[1769606724175,1.04290037,3036.1,3035.1,3.57932123]
[1769606724473,1.04290037,3036.3,3035.1,3.57932123]
[1769606726376,3.82063875,3036.2,3035.1,3.57932123]
[1769606726571,1.04290037,3036.3,3035.1,3.57932123]
[1769606726771,3.82063877,3036.2,3035.1,3.57932123]
[1769606726972,1.04290037,3036.3,3035.1,3.57932123]
[1769606727381,3.8221597,3036.2,3035.1,3.57932123]
[1769606727580,1.04290037,3036.3,3035.1,3.57932123]
[1769606727788,3.82234577,3036.2,3035.1,3.57932123]
[1769606728080,1.04290037,3036.3,3035.1,3.57932123]
[1769606728382,3.82234362,3036.2,3035.1,3.57932123]
[1769606728581,1.04290037,3036.3,3035.1,3.57932123]
[1769606728781,3.82305604,3036.2,3035.3,3.48375825]
[1769606728981,1.04290037,3036.1,3035.3,3.48375825]
[1769606729179,3.60996637,3035.8,3035.0,3.4873653]
[1769606729475,1.04290037,3035.4,3034.7,0.16499]
[1769606730271,1.04290037,3035.4,3034.7,0.16897046]
[1769606731284,4.65286674,3035.6,3034.8,3.48375825]
[1769606731488,3.83142862,3035.5,3034.8,3.48375825]
[1769606731686,4.65286674,3035.6,3034.8,3.48375825]
[1769606731984,3.83142035,3035.5,3034.8,3.48375825]
[1769606732185,1.04290037,3035.8,3034.8,3.48375825]
[1769606732379,3.83106076,3035.7,3034.8,3.48375825]
[1769606732581,1.04290037,3035.8,3034.8,3.48375825]
[1769606732783,3.83104559,3035.7,3034.8,3.48375825]
[1769606732991,1.04290037,3035.8,3034.8,3.48375825]
[1769606733187,3.83101233,3035.7,3034.8,3.48375825]
[1769606733383,1.04290037,3035.8,3034.8,3.48375825]
[1769606733580,3.83092024,3035.7,3034.8,3.48375825]
[1769606733780,1.04290037,3035.8,3034.8,3.48375825]
[1769606733989,3.8309229,3035.7,3034.8,3.48375825]
[1769606734194,1.04290037,3035.8,3034.8,3.48375825]
[1769606734391,3.83086598,3035.7,3034.8,3.48375825]
[1769606734591,1.04290037,3035.8,3034.8,3.48375825]
[1769606734899,3.83086333,3035.7,3034.8,3.48375825]
[1769606735195,1.04290037,3035.8,3034.8,3.48375825]
[1769606735401,3.83065317,3035.7,3034.8,3.48375825]
[1769606735597,1.04290037,3035.8,3034.8,3.48375825]
[1769606735802,4.65286674,3036.2,3035.0,3.48375825]
[1769606735997,1.04290037,3036.0,3035.0,3.48375825]
[1769606736202,1.04290037,3035.8,3035.0,3.48375825]
[1769606736494,4.65286674,3035.8,3035.0,3.48375825]
[1769606736899,3.60996637,3035.7,3035.0,3.48375825]
[1769606740203,3.60996637,3035.7,3034.8,0.16499]
[1769606740505,3.60996637,3035.5,3034.7,3.48773871]
[1769606741205,3.60996637,3035.5,3034.7,0.00398046]
[1769606741603,3.60996637,3035.3,3034.7,0.00398046]
[1769606741802,40.8,3036.4,3033.3,6.455]
[1769606741803,1.04290037,3034.7,3033.9,3.48375825]
[1769606742000,3.60996637,3034.9,3033.9,3.48375825]
[1769606742506,3.60996637,3034.9,3033.9,4.52665862]
[1769606742701,3.60996637,3034.8,3033.9,3.48704243]
[1769606744503,3.60996637,3035.2,3034.0,3.48375825]
[1769606744705,3.60996637,3035.2,3034.2,3.48375825]
[1769606745704,3.60996637,3035.2,3034.4,3.48375825]
[1769606745899,3.60996637,3035.6,3034.4,3.48375825]
[1769606746101,3.60996637,3035.4,3034.4,3.48375825]
[1769606746404,3.83427348,3035.3,3034.4,3.48375825]
[1769606746700,3.60996637,3035.7,3034.6,3.48375825]
[1769606746904,3.83429396,3035.6,3034.6,3.48375825]
[1769606747099,3.60996637,3035.4,3034.6,3.48375825]
[1769606747300,3.60996637,3035.4,3034.4,0.16501]
[1769606747504,3.60996637,3035.4,3034.4,3.64876825]
[1769606747705,3.60996637,3035.2,3034.4,3.64876825]
[1769606749204,3.77497637,3034.4,3032.5,3.48375825]
[1769606749405,3.60996637,3033.8,3032.7,3.48375825]
[1769606749610,3.60996637,3034.5,3033.3,3.48375825]
[1769606750002,3.60996637,3034.4,3033.3,3.48375825]
[1769606750202,3.60996637,3034.2,3033.3,3.48639953]
[1769606750914,0.00286014,3034.4,3033.3,4.5292999]
[1769606751102,0.00286014,3034.4,3033.4,3.48375825]
[1769606751308,3.60996637,3035.1,3034.0,3.48375825]
[1769606751500,4.65286674,3035.0,3034.0,3.48375825]
[1769606751813,3.60996637,3035.0,3034.0,3.48375825]
[1769606752315,3.61298456,3035.0,3034.0,3.48375825]
[1769606755704,3.81192275,3034.8,3033.3,0.00264128]
[1769606755908,3.64693275,3034.6,3033.3,0.00264128]
[1769606756112,3.64693275,3034.4,3033.3,0.00264128]
[1769606756307,3.64693275,3034.2,3033.3,0.00264128]
[1769606756511,3.64693275,3034.2,3032.9,3.59951608]
[1769606757616,3.64693275,3034.2,3032.9,3.60299998]
[1769606762014,3.64693275,3034.2,3033.1,3.76459608]
[1769606762318,3.64693275,3034.5,3033.1,3.76459608]
[1769606762513,3.64693275,3034.5,3033.1,0.16508]
[1769606762820,3.64693275,3034.3,3033.1,0.16508]
[1769606764212,3.64693275,3034.3,3033.1,3.76459608]
[1769606765316,3.64693275,3034.3,3033.3,3.59951608]
[1769606765625,3.64693275,3034.7,3033.3,3.59951608]
[1769606765923,3.64693275,3034.7,3033.4,0.16506]
[1769606766116,3.64995094,3035.0,3033.7,3.59951608]
[1769606766318,3.82289611,3034.9,3033.7,3.76456608]
[1769606766512,3.82289611,3034.8,3033.7,3.76456608]
[1769606766717,3.64995094,3035.0,3033.7,3.76456608]
[1769606766917,7.47033216,3034.9,3033.7,3.76456608]
[1769606767117,3.64693275,3034.9,3033.7,3.76456608]
[1769606768220,7.47324586,3034.8,3033.7,3.76456608]
[1769606768524,3.64693275,3034.8,3033.7,3.76456608]
[1769606769628,0.00301819,3035.0,3034.1,3.59951608]
[1769606770529,0.00301819,3035.0,3034.1,3.76454608]
[1769606772130,3.64995094,3035.0,3034.1,3.76454608]
[1769606776429,3.64995094,3035.0,3033.6,3.59951608]
[1769606776633,3.64693275,3034.8,3033.6,3.59951608]
[1769606779638,3.64693275,3034.8,3033.6,3.76456608]
[1769606781531,3.64693275,3034.8,3033.8,3.59951608]
[1769606783538,0.09301819,3035.0,3033.8,3.76455608]
[1769606784227,3.73995094,3035.0,3033.8,3.76455608]
[1769606786038,3.64995094,3035.0,3033.8,3.67455608]
[1769606788336,7.42073269,3034.9,3033.8,3.67455608]
[1769606788530,3.59327637,3034.9,3033.8,3.67455608]
[1769606792240,3.59327637,3034.9,3034.0,3.57424032]
[1769606792445,0.00301819,3035.0,3034.0,3.73927032]
[1769606794840,3.59629456,3035.0,3034.0,3.73927032]
[1769606795248,7.43309519,3034.9,3034.0,3.73927032]
[1769606795447,3.59327637,3034.9,3034.0,3.73927032]
[1769606806555,3.84080018,3034.8,3033.9,3.57424032]
[1769606806755,3.59327637,3034.9,3033.9,3.57424032]
[1769606806956,3.84082367,3034.8,3033.9,3.57424032]
[1769606807156,3.59327637,3034.9,3033.9,3.57424032]
[1769606807353,3.8414235,3034.8,3033.9,3.57424032]
[1769606807559,3.59327637,3034.8,3033.9,3.57424032]
[1769606808758,3.59327637,3034.8,3033.8,0.16504]
[1769606809562,3.59327637,3034.8,3033.8,3.73928032]
[1769606810365,0.00301819,3035.0,3034.1,3.57424032]
[1769606810562,3.84187236,3034.9,3034.1,3.57424032]
[1769606810864,0.00301819,3035.0,3034.1,3.57424032]
[1769606811064,3.84177152,3034.9,3034.1,3.57424032]
[1769606811262,0.00301819,3035.0,3034.1,3.57424032]
[1769606811460,3.59327637,3035.6,3034.3,2.33127575]
[1769606811660,5.90565745,3036.7,3035.0,0.16498]
[1769606811865,14.16813474,3037.0,3035.1,3.57424032]
[1769606812067,40.8,3036.9,3035.1,3.57424032]
[1769606812461,40.80347021,3036.9,3035.1,3.57654574]
[1769606813468,41.0766324,3036.9,3035.1,3.57654574]
[1769606813768,3.59327637,3036.8,3035.5,3.57424032]
[1769606814467,3.59327637,3036.8,3035.5,3.73919032]
[1769606816365,3.59327637,3036.8,3035.2,3.62151121]
[1769606820475,3.59327637,3036.8,3035.3,3.78647121]
[1769606820972,3.59327637,3036.8,3035.5,3.62151121]
[1769606821173,3.59327637,3036.8,3035.7,3.62151121]
[1769606821876,3.59327637,3036.8,3035.6,0.16495]
[1769606822569,3.59327637,3036.8,3035.4,3.62151121]
[1769606822874,3.59327637,3036.8,3035.1,3.62381663]
[1769606823468,3.67112646,3036.6,3035.1,3.62381663]
[1769606826468,3.67112646,3036.6,3035.1,0.00230542]
[1769606826775,3.67112646,3036.3,3035.1,0.00230542]
[1769606831778,3.67112646,3036.1,3035.1,0.00230542]
[1769606833176,3.67112646,3036.1,3035.1,3.62381663]
[1769606834673,3.67112646,3036.1,3035.1,0.00230542]
[1769606836378,3.67112646,3036.6,3035.2,3.62151121]
[1769606836677,0.00347021,3036.9,3035.9,3.62151121]
[1769606836883,0.00347021,3036.9,3035.9,3.78644121]
[1769606837081,0.26629632,3037.5,3036.1,3.62151121]
[1769606837278,3.67112646,3037.6,3036.1,3.62151121]
[1769606837475,3.67112646,3037.6,3036.4,3.62151121]
[1769606837677,3.67112646,3037.6,3036.4,3.78641121]
[1769606837879,0.26564522,3037.8,3036.6,3.62151121]
[1769606838080,3.67439573,3037.8,3036.6,3.62151121]